[Event "CCT Chessable Masters D-II 2024"]
[Site "Online"]
[Date "2024.02.02"]
[Round "1"]
[White "shimastream"]
[Black "Sam_ChessMood"]
[Result "0-1"]
[ECO "A09"]
[WhiteElo "2640"]
[BlackElo "2653"]
[Annotator "TA"]
[PlyCount "138"]
[EventDate "2024.01.12"]
[EventType "k.o."]
[EventCountry "NET"]
[SourceTitle "playchess.com"]
[Source "ChessBase"]
[SourceQuality "1"]
[TimeControl "600+2"]

{[%evp 54,138,-31,-33,-21,-29,-29,-29,-29,-29,-21,-29,-29,-29,-29,-29,-29,-29,0,0,0,0,0,0,0,-37,-37,-37,-37,-37,-37,-37,-37,-37,-37,-37,-37,-37,-37,-37,0,-37,0,-37,-37,-37,-37,-37,-37,-37,-37,-37,-37,-37,-37,-37,-37,-37,-37,-37,0,-37,0,-8,-8,-8,0,0,0,0,0,0,0,0,0,0,0,0,0,0,0,-29982,-29983,-29983,-29984,-29984,-29985]} 1. Nf3 {[%emt 0:00:10]} d5 {[%emt 0:00:04]} 2. g3 {[%emt 0:00:31]} g6 {[%emt 0:00:02]} 3. c4 {[%emt 0:00:11]} dxc4 {[%emt 0:00:01]} 4. Na3 {[%emt 0:00:08]} Bg7 {[%emt 0:00:03]} 5. Nxc4 {[%emt 0:00:02]} Nc6 {[%emt 0:00:01]} 6. Bg2 {[%emt 0:00:03] A09: Réti Opening: 1 Nf3 d5 2 c4.} e5 {[%emt 0:00:02]} 7. d3 {[%emt 0:00:01]} e4 {[%emt 0:00:05]} 8. dxe4 {[%emt 0:00:46]} Qxd1+ {[%emt 0:00:04]} 9. Kxd1 {[%emt 0:00:00]} Nf6 {[%emt 0:00:01]} 10. Nfe5 {[%emt 0:01:34]} Nxe5 {[%emt 0:00:34]} 11. Nxe5 {[%emt 0:00:00]} Nxe4 {[%emt 0:00:01]} 12. Bxe4 {[%emt 0:00:00]} Bxe5 {[%emt 0:00:02]} 13. Kc2 {[%emt 0:00:04]} c6 {[%emt 0:01:01]} 14. Bd2 $146 {[%emt 0:00:27]} ({Predecessor:} 14. f4 Bg7 15. Bf3 f5 16. Be3 Be6 17. Rad1 Kf7 18. Bd4 Rhd8 19. Bxg7 Kxg7 20. a3 {1-0 Pantsulaia,L (2553)-Vogel,R (2454) Titled Tuesday intern op 20th Oct blitz 2020 (10)}) 14... Be6 {[%emt 0:01:11]} 15. Bc3 {[%emt 0:00:16]} Bxc3 {[%emt 0:00:02]} 16. Kxc3 {[%emt 0:00:00]} O-O-O {[%emt 0:00:07]} 17. Rhd1 {[%emt 0:00:05]} Kc7 {[%emt 0:00:02]} 18. a3 {[%emt 0:00:06]} a5 {[%emt 0:00:11]} 19. h4 {[%emt 0:00:14]} b5 {[%emt 0:00:19]} 20. Rxd8 {[%emt 0:01:33]} Rxd8 {[%emt 0:00:03]} 21. b4 {[%emt 0:00:00]} Ra8 {[%emt 0:01:07]} 22. Kb2 {[%emt 0:00:45]} Kb6 {[%emt 0:01:07]} 23. Rc1 {[%emt 0:00:42]} Bc4 {[%emt 0:00:02]} 24. bxa5+ {[%emt 0:00:04]} Rxa5 {[%emt 0:00:09]} 25. Bd3 {[%emt 0:00:23]} Be6 {[%emt 0:00:42]} 26. h5 {[%emt 0:00:49]} c5 {[%emt 0:00:28]} 27. hxg6 {[%emt 0:00:34]} hxg6 {[%emt 0:00:02]} 28. Rd1 {[%emt 0:00:26]} Kc7 {[%emt 0:00:37]} 29. Bb1 {[%emt 0:00:13]} Ra8 {[%emt 0:00:09]} 30. Be4 {[%emt 0:00:07]} Re8 {[%emt 0:00:27]} 31. Bf3 {[%emt 0:00:02]} g5 {[%emt 0:01:29]} 32. e3 {[%emt 0:00:09]} Rh8 {[%emt 0:00:12]} 33. Rh1 {[%emt 0:00:03]} Rxh1 {[%emt 0:00:13]} 34. Bxh1 {[%emt 0:00:00]} g4 {[%emt 0:00:02]} 35. Be4 {[%emt 0:00:06]} b4 {[%emt 0:00:07]} 36. axb4 {[%emt 0:00:01]} cxb4 {[%emt 0:00:01]} 37. Bc2 {[%emt 0:00:04]} Kd6 {[%emt 0:00:05]} 38. Bd1 {[%emt 0:00:23]} Kc5 {[%emt 0:00:05]} 39. f3 {[%emt 0:00:04]} gxf3 {[%emt 0:00:13]} 40. Bxf3 {[%emt 0:00:00]} Kc4 {[%emt 0:00:04]} 41. Be2+ {[%emt 0:00:01]} Kd5 {[%emt 0:00:01]} 42. Bd3 {[%emt 0:00:01]} Ke5 {[%emt 0:00:01]} 43. Bb1 {[%emt 0:00:16]} Bd5 {[%emt 0:00:05]} 44. Bc2 {[%emt 0:00:01]} f6 {[%emt 0:00:01]} 45. Bd3 $1 {[%emt 0:00:02]} Be6 {[%emt 0:00:02]} 46. Bc2 {[%emt 0:00:01]} Bf5 {[%emt 0:00:01]} 47. Bd1 {[%emt 0:00:03]} Be6 {[%emt 0:00:02]} 48. Bc2 {[%emt 0:00:01]} Kd6 {[%emt 0:00:03]} 49. Bd3 {[%emt 0:00:01]} Kc5 {[%emt 0:00:01]} 50. Be2 {[%emt 0:00:02]} Bc4 {[%emt 0:00:02]} 51. Bf3 {[%emt 0:00:01]} Bd3 {[%emt 0:00:02]} 52. Bg4 {[%emt 0:00:02]} Be4 {[%emt 0:00:02]} 53. Be2 {[%emt 0:00:01]} Bd5 {[%emt 0:00:02]} 54. Bd3 {[%emt 0:00:00]} Kd6 {[%emt 0:00:01]} 55. Bc2 {[%emt 0:00:02]} Ke7 {[%emt 0:00:01]} 56. Bd3 {[%emt 0:00:01]} Kf7 {[%emt 0:00:01]} 57. Kc1 {[%emt 0:00:09]} Kg7 {[%emt 0:00:01]} 58. Kd2 {[%emt 0:00:01]} Kh6 {[%emt 0:00:01]} 59. Be2 {[%emt 0:00:01]} Kg5 {[%emt 0:00:01]} 60. Kd3 {[%emt 0:00:03]} Be6 {[%emt 0:00:07]} 61. Kd4 {[%emt 0:00:01]} Bf7 {[%emt 0:00:02]} 62. Bd1 {[%emt 0:00:01]} Bh5 {[%emt 0:00:03]} 63. Bxh5 {[%emt 0:00:06]} Kxh5 {[%emt 0:00:01]} 64. Kc4 {[%emt 0:00:00]} Kg4 {[%emt 0:00:01]} 65. Kxb4 {[%emt 0:00:01]} Kf3 {[%emt 0:00:00]} 66. Kc3 {[%emt 0:00:05]} Kxe3 {[%emt 0:00:02]} 67. g4 $2 {[%emt 0:00:00][%mdl 8192]} (67. Kc4 $11) 67... Kf4 {[%emt 0:00:01]} 68. Kd3 {[%emt 0:00:01]} Kxg4 {[%emt 0:00:00]} 69. Ke2 {[%emt 0:00:01]} Kg3 {[%emt 0:00:02]} 0-1

[Event "CCT Chessable Masters D-II 2024"]
[Site "Online"]
[Date "2024.02.02"]
[Round "1"]
[White "GMBenjaminBok"]
[Black "Mamedov, Rauf"]
[Result "1/2-1/2"]
[ECO "E04"]
[WhiteElo "2628"]
[BlackElo "2651"]
[Annotator "TA"]
[PlyCount "93"]
[EventDate "2024.01.12"]
[EventType "k.o."]
[EventCountry "NET"]
[SourceTitle "playchess.com"]
[Source "ChessBase"]
[SourceQuality "1"]
[TimeControl "600+2"]

{[%evp 20,93,86,85,94,47,79,67,74,64,72,44,67,48,33,24,47,33,52,23,61,0,40,31,18,0,31,10,4,6,19,4,2,2,18,18,26,0,10,12,13,0,0,5,3,0,0,0,0,2,0,0,4,0,0,0,0,0,0,0,0,0,8,0,8,0,0,0,0,0,0,0,0,0,8,0]} 1. d4 {[%emt 0:00:02]} d5 {[%emt 0:00:03]} 2. c4 {[%emt 0:00:01]} e6 {[%emt 0:00:00]} 3. Nf3 {[%emt 0:00:02]} Nf6 {[%emt 0:00:13][%cal Bg8f6,Bf6d5,Bd5b4][%mdl 32]} 4. g3 {[%emt 0:00:02]} dxc4 {[%emt 0:00:03]} 5. Bg2 {[%emt 0:00:03]} Nc6 {[%emt 0:00:02]} 6. Qa4 {[%emt 0:00:07]} Bb4+ {[%emt 0:00:03]} 7. Bd2 {[%emt 0:00:01]} Nd5 {[%emt 0:00:07]} 8. Bxb4 {[%emt 0:01:54]} Ndxb4 {[%emt 0:00:02]} 9. O-O {[%emt 0:00:41]} O-O {[%emt 0:00:53]} 10. a3 {[%emt 0:00:26]} Nd5 {[%emt 0:01:21]} 11. Qxc4 {[%emt 0:00:02]} Nb6 {[%emt 0:00:32]} 12. Qd3 {[%emt 0:00:04]} (12. Qc3 $16) 12... Qe7 {[%emt 0:00:44]} 13. Nc3 {[%emt 0:01:48]} Rd8 {[%emt 0:00:03][%cal Oc6d4] White is slightly better.} 14. Qe4 {[%emt 0:01:12]} a5 {[%emt 0:01:08]} 15. Rfd1 {[%emt 0:00:14]} a4 {[%emt 0:00:06]} 16. Rac1 {[%emt 0:00:04] White is more active.} Bd7 {[%emt 0:00:41]} 17. e3 {[%emt 0:00:18]} Be8 {[%emt 0:00:10]} 18. h4 {[%emt 0:00:21]} h6 {[%emt 0:00:01]} 19. Qf4 {[%emt 0:00:19]} Ra5 {[%emt 0:00:43]} 20. Qe4 {[%emt 0:01:19]} Raa8 $1 {[%emt 0:00:59]} 21. Qc2 {[%emt 0:00:03]} Na5 {[%emt 0:00:08]} 22. Ne5 {[%emt 0:00:16]} Nb3 {[%emt 0:00:04]} 23. Rb1 {[%emt 0:00:27]} c5 {[%emt 0:00:05]} 24. dxc5 {[%emt 0:00:07]} Nxc5 {[%emt 0:00:02]} 25. Rxd8 {[%emt 0:00:12]} Rxd8 {[%emt 0:00:01]} 26. Rd1 {[%emt 0:00:01]} Rc8 {[%emt 0:00:01]} 27. Qe2 {[%emt 0:00:10]} Rd8 {[%emt 0:00:38]} 28. Rd2 {[%emt 0:00:27]} Qc7 {[%emt 0:00:20] The position is equal.} 29. Rxd8 {[%emt 0:00:04]} Qxd8 {[%emt 0:00:01]} 30. Nc4 {[%emt 0:00:02]} Nxc4 {[%emt 0:00:08]} 31. Qxc4 {[%emt 0:00:00]} b6 {[%emt 0:00:00]} 32. Qe2 {[%emt 0:00:08] Wards off Qd2} Qd6 {[%emt 0:00:09]} 33. Bf3 {[%emt 0:00:04]} g5 {[%emt 0:00:37]} 34. hxg5 {[%emt 0:00:01]} hxg5 {[%emt 0:00:00]} 35. Qd1 {[%emt 0:00:01]} Qd3 {[%emt 0:00:20]} 36. Be2 {[%emt 0:00:04]} Qxd1+ {[%emt 0:00:04]} 37. Bxd1 $11 {[%emt 0:00:01][%mdl 4096] Endgame. KBN-KBN} Kf8 {[%emt 0:00:06]} 38. Kf1 {[%emt 0:00:02]} Ke7 {[%emt 0:00:05]} 39. Ke2 {[%emt 0:00:02]} f5 {[%emt 0:00:01]} 40. Kd2 {[%emt 0:00:05]} g4 {[%emt 0:00:06]} 41. Bc2 {[%emt 0:00:02]} Bc6 {[%emt 0:00:02] Repels e4} 42. Ke2 {[%emt 0:00:04]} Kd6 {[%emt 0:00:02]} 43. Kd2 {[%emt 0:00:00]} Ke5 {[%emt 0:00:02]} 44. Bd1 {[%emt 0:00:03]} Kd6 {[%emt 0:00:07]} 45. Bc2 {[%emt 0:00:01]} Ke5 {[%emt 0:00:03]} 46. Bd1 {[%emt 0:00:00]} Kd6 {[%emt 0:00:01]} 47. Bc2 {[%emt 0:00:01] Weighted Error Value: White=0.12 (very precise) /Black=0.08 (flawless) .  Mistake:       	White=1     	---        Inaccurate:     	White=3     	Black=3      OK:         	White=6     	Black=13     Strong:       	---       	Black=1} 1/2-1/2

[Event "CCT Chessable Masters D-II 2024"]
[Site "Online"]
[Date "2024.02.02"]
[Round "1"]
[White "Micki-taryan"]
[Black "Sibelephant"]
[Result "1/2-1/2"]
[ECO "E11"]
[WhiteElo "2620"]
[BlackElo "2793"]
[Annotator "TA"]
[PlyCount "94"]
[EventDate "2024.01.12"]
[EventType "k.o."]
[EventCountry "NET"]
[SourceTitle "playchess.com"]
[Source "ChessBase"]
[SourceQuality "1"]
[TimeControl "600+2"]

{[%evp 13,94,16,18,15,19,0,7,0,0,0,0,0,0,0,2,5,22,36,33,39,40,39,42,-14,0,0,0,-38,0,-13,-14,-49,-40,-71,-44,-117,-122,-120,-115,-97,-108,-114,-111,-141,-140,-224,-198,-233,-231,-237,-231,-231,-220,-269,-148,-253,-262,-342,-243,-240,-234,-251,-168,-159,-2,-2,-5,-11,0,0,0,0,0,0,0,0,0,0,0,0,0,0,0]} 1. d4 {[%emt 0:00:03]} Nf6 {[%emt 0:00:07]} 2. c4 {[%emt 0:00:00]} e6 {[%emt 0:00:01]} 3. Nf3 {[%emt 0:00:01]} Bb4+ {[%emt 0:00:08]} 4. Bd2 {[%emt 0:00:02]} Bxd2+ {[%emt 0:00:01]} 5. Qxd2 {[%emt 0:00:00]} d5 {[%emt 0:00:02]} 6. Nc3 {[%emt 0:00:03]} O-O {[%emt 0:00:04]} 7. e3 {[%emt 0:00:03]} Qe7 {[%emt 0:00:10]} 8. cxd5 {[%emt 0:00:12]} exd5 {[%emt 0:00:01]} 9. Rc1 {[%emt 0:00:12]} Bf5 {[%emt 0:00:38]} 10. Bd3 {[%emt 0:01:09]} Bxd3 {[%emt 0:00:04]} 11. Qxd3 {[%emt 0:00:00]} c6 {[%emt 0:00:14]} 12. O-O {[%emt 0:00:20]} Nbd7 {[%emt 0:00:04]} 13. Nd2 {[%emt 0:00:02]} Rfe8 {[%emt 0:00:56] [#]} 14. b4 $1 {[%emt 0:01:27]} b5 {[%emt 0:01:21]} (14... a6 15. a4) 15. a4 {[%emt 0:01:20]} a6 {[%emt 0:02:16]} 16. Na2 {[%emt 0:00:02]} Rec8 {[%emt 0:00:35]} 17. a5 {[%emt 0:00:15]} Ne8 {[%emt 0:00:02]} 18. e4 {[%emt 0:00:20]} (18. Nb3 $14) 18... dxe4 $11 {[%emt 0:00:01]} 19. Nxe4 {[%emt 0:00:01]} Nef6 {[%emt 0:00:22]} 20. Nc5 {[%emt 0:00:27]} Nd5 {[%emt 0:00:21] Strongly threatening ...Nf4.} 21. Rfe1 {[%emt 0:00:15]} Nxc5 {[%emt 0:00:04]} 22. bxc5 {[%emt 0:00:32]} Qc7 {[%emt 0:00:18]} 23. Qd2 {[%emt 0:00:14]} b4 {[%emt 0:00:23]} 24. Rb1 {[%emt 0:00:39]} (24. Nxb4 $15 Qxa5 25. Rc4) 24... Qxa5 $17 {[%emt 0:00:08] ...Re8 would now be deadly.} 25. Nxb4 {[%emt 0:00:02]} Rcb8 {[%emt 0:00:40][%cal Rb8b4]} 26. Qa2 {[%emt 0:00:04]} Qxa2 {[%emt 0:00:01]} 27. Nxa2 {[%emt 0:00:01]} a5 {[%emt 0:00:37]} 28. g3 {[%emt 0:00:17]} a4 {[%emt 0:00:13]} 29. Red1 {[%emt 0:00:28]} (29. Kf1 $17) 29... Rb3 {[%emt 0:00:11]} 30. Kf1 {[%emt 0:00:15]} f6 {[%emt 0:00:12]} 31. Ra1 {[%emt 0:00:36]} a3 {[%emt 0:00:20]} 32. Nc1 {[%emt 0:00:48]} Rb4 {[%emt 0:00:04]} 33. Rd3 {[%emt 0:00:07]} Kf7 {[%emt 0:00:03]} ({Black should try} 33... Rb2 $19 {Hoping for ...a2.} 34. Rb3 (34. Raxa3 $2 {loses.} Rxa3 35. Rxa3 Rb1 $19) 34... Rc2) 34. Kg2 {[%emt 0:00:04]} (34. Ke1 $17) 34... Rc4 $19 {[%emt 0:00:10]} 35. Ne2 {[%emt 0:00:23]} a2 {[%emt 0:00:03] Threatens to win with ...Rc2.} 36. Rd2 {[%emt 0:00:06]} Nb4 {[%emt 0:00:00]} 37. Rb2 {[%emt 0:00:08]} Ra4 {[%emt 0:00:04] [#] aiming for ...Rc2.} 38. Nc1 {[%emt 0:00:05][%cal Rc1a2]} Nc2 $2 {[%emt 0:00:13]} (38... Rxd4 $17 {And now ...Rd1 would win.} 39. Nxa2 Rc4) 39. Raxa2 {[%emt 0:00:03] The position is equal.} Rxa2 {[%emt 0:00:04]} (39... Nxd4 40. Rb7+ Kf8 41. Rxa4 Rxa4 42. Nd3) 40. Nxa2 {[%emt 0:00:02]} Nxd4 $11 {[%emt 0:00:01][%cal Of7e6][%mdl 4096] Endgame. KRN-KRN} 41. Rb7+ {[%emt 0:00:03]} Kg6 {[%emt 0:00:01]} 42. Rb4 {[%emt 0:00:10]} Rxb4 {[%emt 0:00:01]} 43. Nxb4 {[%emt 0:00:01]} Kf5 {[%emt 0:00:01]} 44. f3 {[%emt 0:00:00]} Nb3 {[%emt 0:00:06]} 45. Nxc6 {[%emt 0:00:01]} Nxc5 {[%emt 0:00:00]} 46. Nd4+ {[%emt 0:00:01]} Ke5 {[%emt 0:00:03]} 47. Ne2 {[%emt 0:00:00]} Ne6 {[%emt 0:00:01] Whites escaped into a draw.   Weighted Error Value: White=0.21 (precise) /Black=0.20 (precise) .  Mistake:       	White=4     	Black=2      Inaccurate:     	White=4     	Black=3      OK:         	White=14    	Black=21     Best:        	White=4     	Black=1} 1/2-1/2

[Event "CCT Chessable Masters D-II 2024"]
[Site "Online"]
[Date "2024.02.02"]
[Round "1"]
[White "Vokhidov, Shamsiddin"]
[Black "Sevian, Samuel"]
[Result "0-1"]
[ECO "C66"]
[WhiteElo "2596"]
[BlackElo "2697"]
[Annotator "TA"]
[PlyCount "96"]
[EventDate "2024.01.12"]
[EventType "k.o."]
[EventCountry "NET"]
[SourceTitle "playchess.com"]
[Source "ChessBase"]
[SourceQuality "1"]
[TimeControl "600+2"]

{[%evp 50,96,0,0,0,-44,-65,-103,11,0,0,0,0,-143,-165,-371,-106,-715,-602,-521,-35,-43,-38,-35,0,0,0,0,0,-134,0,-333,-141,-313,-283,-1140,-873,-879,-872,-827,-783,-29979,-29980,-29980,-29981,-29987,-2247,-29982,-29981]} 1. e4 {[%emt 0:00:03]} e5 {[%emt 0:00:03]} 2. Nf3 {[%emt 0:00:01]} Nc6 {[%emt 0:00:01]} 3. Bb5 {[%emt 0:00:01]} Nf6 {[%emt 0:00:00]} 4. d3 {[%emt 0:00:06]} d6 {[%emt 0:00:01]} 5. O-O {[%emt 0:00:03]} Bd7 {[%emt 0:00:02]} 6. Re1 {[%emt 0:00:08] C66: Ruy Lopez: Steinitz Defence.} g6 $1 {[%emt 0:00:01] The main line 6...g6 scores better than 6...Be7.} 7. d4 {[%emt 0:00:04]} Bg7 {[%emt 0:00:04]} 8. d5 {[%emt 0:00:02]} Ne7 {[%emt 0:00:00]} 9. Bxd7+ {[%emt 0:00:05]} Nxd7 {[%emt 0:00:01]} 10. c4 {[%emt 0:00:01]} h6 {[%emt 0:00:06]} 11. Nc3 {[%emt 0:00:02]} f5 {[%emt 0:00:17]} 12. Rb1 {[%emt 0:01:49]} O-O {[%emt 0:00:15]} 13. b4 {[%emt 0:00:01]} Nf6 {[%emt 0:01:06]} 14. Qd3 $146 {[%emt 0:00:41]} ({Predecessor:} 14. Ba3 a5 15. bxa5 Nxe4 16. Nxe4 fxe4 17. Rxe4 Rxa5 18. Qb3 Qa8 19. Bc1 Rxa2 20. Qxb7 Qxb7 21. Rxb7 {0-1 Rozentalis,E (2535)-Van Foreest,J (2595) FRA-chT Top 12 2017 (5.4)}) 14... f4 {[%emt 0:01:33]} 15. c5 {[%emt 0:00:03]} g5 {[%emt 0:00:01]} 16. Nd2 {[%emt 0:00:15]} Ng6 {[%emt 0:00:04]} 17. Nc4 {[%emt 0:00:11]} Rf7 {[%emt 0:00:00]} 18. c6 {[%emt 0:01:32]} b6 {[%emt 0:00:27]} 19. f3 {[%emt 0:00:09]} h5 {[%emt 0:00:04]} 20. Kf2 {[%emt 0:00:05]} g4 {[%emt 0:00:12]} 21. Ke2 {[%emt 0:00:02]} Nh4 {[%emt 0:00:03]} 22. Rg1 {[%emt 0:00:01]} Nh7 {[%emt 0:00:19]} 23. Kd1 {[%emt 0:00:28]} Ng5 {[%emt 0:00:04]} 24. Nd2 {[%emt 0:00:02]} Bf6 {[%emt 0:00:59]} 25. Kc2 {[%emt 0:00:04]} Rg7 {[%emt 0:00:02]} 26. Bb2 {[%emt 0:00:09]} Qc8 {[%emt 0:00:14]} 27. Ne2 {[%emt 0:00:34]} gxf3 {[%emt 0:01:44]} 28. Nxf4 {[%emt 0:00:11]} (28. Nxf3 Ngxf3 29. gxf3 Qh3 $17) 28... Qg4 {[%emt 0:00:15]} (28... exf4 $17 29. g3 (29. Bxf6 fxg2 30. Rb3 Rg6 $17) 29... Bxb2 30. gxh4 Nh3) 29. h3 {[%emt 0:00:31]} Nxh3 $1 {[%emt 0:00:33]} (29... Qxf4 $6 30. g3 $16) 30. Nxh3 {[%emt 0:00:11]} fxg2 {[%emt 0:00:00]} 31. Nf2 {[%emt 0:00:19]} (31. Rbe1 $11 {remains equal.}) 31... Qg3 $1 $17 {[%emt 0:00:18]} 32. Qe2 $2 {[%emt 0:00:34]} (32. Qxg3 Rxg3 33. Nf1) 32... Bg5 $2 {[%emt 0:00:02]} (32... Rf8 $1 $19 {has better winning chances. Strongly threatening ...Bg5.} 33. Nd3 Bg5) 33. Nc4 $2 {[%emt 0:01:26][%mdl 8192]} (33. Nf1 $17 gxf1=B 34. Rbxf1) 33... Rf8 $19 {[%emt 0:00:11]} 34. Nd3 {[%emt 0:00:03]} Bf6 $2 {[%emt 0:00:33]} (34... Rgf7 $19 35. Qxh5 Rf2+ 36. Kc3 (36. Nxf2 Rxf2+) 36... b5) 35. Ne3 $1 $15 {[%emt 0:00:04]} (35. Qxh5 $2 Nf3 36. Bc3 b5 $19) 35... Be7 {[%emt 0:00:25]} 36. Bc3 $1 {[%emt 0:00:04]} (36. Nxg2 $2 Nxg2 37. Rbd1 (37. Qxh5 $2 Qxd3+ 38. Kxd3 Nf4+ 39. Kc4 Nxh5 $19) 37... h4 $19) 36... Rf3 {[%emt 0:00:08]} 37. Bd2 {[%emt 0:00:05]} b5 {[%emt 0:00:23]} 38. a3 {[%emt 0:00:04]} a6 {[%emt 0:00:02]} 39. Rbe1 {[%emt 0:00:04] [#]} (39. Rbd1 $11) 39... Qh3 {[%emt 0:00:10]} (39... Rxe3 $1 $17 40. Bxe3 (40. Qxe3 Nf3 $17) 40... Nf3) 40. Qd1 $2 {[%emt 0:00:10][%mdl 8192] [#]} (40. Rd1 $11 {and White stays safe.}) 40... Rgg3 {[%emt 0:00:03]} (40... Bg5 $1 $19 {[%cal Rg5e3] is more deadly.} 41. Qe2 Bxe3 42. Bxe3 Rgg3) 41. Re2 $2 {[%emt 0:00:26]} (41. Qe2 $17) 41... Bg5 $19 {[%emt 0:00:26]} 42. Be1 $2 {[%emt 0:00:19]} (42. Nxg2 Rxd3 (42... Nxg2 43. Nf2 $14) 43. Nxh4 Qxh4 44. Rxg3 Qxg3 (44... Rxg3 45. Be1 $11) 45. Be1 Rxd1 46. Bxg3 Rc1+ 47. Kb2) 42... Rxe3 {[%emt 0:00:05]} 43. Bxg3 {[%emt 0:00:01]} Rxg3 {[%emt 0:00:00]} 44. Rf2 {[%emt 0:00:10]} Nf3 {[%emt 0:00:05]} 45. Rxf3 {[%emt 0:00:05]} Rxf3 {[%emt 0:00:01]} 46. Qe2 {[%emt 0:00:01]} Rg3 {[%emt 0:00:02]} 47. Qd1 {[%emt 0:00:03]} Qg4 {[%emt 0:00:01]} (47... Be3 $142 48. Re1 g1=Q (48... g1=R {leads to mate.} 49. Rxg1 Rxg1 50. Qe2 Bd4 51. Qd2 Rg2 52. Kd1 Rxd2+ 53. Kxd2 Qe3+ 54. Kc2 Qe2+ 55. Kc1 Qxd3 56. a4 bxa4 57. b5 a3 58. bxa6 Be3#) 49. Rxg1 Rxg1 50. Qe2 Bd4 51. Qd2 Rg2 52. Kd1 Rxd2+ 53. Kxd2 Qg2+ (53... Qe3+ {gets mated.} 54. Kc2 a5 55. bxa5 Qe2+ 56. Kc1 Qxd3 57. a6 Bc3 58. a7 Qd2+ 59. Kb1 Qb2#) 54. Kd1 Bc3 (54... Qxe4 {is a self mate.} 55. Kd2 Qe3+ 56. Kc2 Qe2+ 57. Kc1 Qxd3 58. a4 bxa4 59. b5 a3 60. bxa6 Be3#) 55. Kc1 Qd2+ (55... Qxe4 56. Kc2 Qd4 57. a4 e4 58. Kc1 exd3 59. Kb1 Qf2 60. axb5 Qc2#) 56. Kb1 Qxd3+ 57. Kc1 Qd2+ 58. Kb1 Qb2#) 48. Qe1 {[%emt 0:00:02]} h4 {[%emt 0:00:02]} 0-1

[Event "CCT Chessable Masters D-II 2024"]
[Site "Online"]
[Date "2024.02.03"]
[Round "2"]
[White "Sibelephant"]
[Black "Nakamura, Hikaru"]
[Result "1/2-1/2"]
[ECO "E06"]
[WhiteElo "2793"]
[BlackElo "2788"]
[Annotator "TA"]
[PlyCount "63"]
[EventDate "2024.01.12"]
[EventType "k.o."]
[EventCountry "NET"]
[SourceTitle "playchess.com"]
[Source "ChessBase"]
[SourceQuality "1"]
[TimeControl "600+2"]

{[%evp 18,63,10,8,10,20,0,0,5,15,6,0,5,0,0,0,33,41,44,42,56,60,60,56,57,44,62,51,54,59,51,53,92,0,0,0,0,0,0,0,0,0,0,0,0,0,0,0]} 1. Nf3 {[%emt 0:00:08]} Nf6 {[%emt 0:00:08]} 2. c4 {[%emt 0:00:11]} e6 {[%emt 0:00:05]} 3. g3 {[%emt 0:00:32]} d5 {[%emt 0:00:39]} 4. Bg2 {[%emt 0:00:02]} Be7 {[%emt 0:00:00]} 5. d4 {[%emt 0:00:11]} O-O {[%emt 0:00:02]} 6. Nc3 {[%emt 0:00:04]} dxc4 {[%emt 0:00:08]} 7. Ne5 {[%emt 0:00:02]} c5 {[%emt 0:00:01]} 8. dxc5 {[%emt 0:00:02]} Qxd1+ {[%emt 0:00:00]} 9. Nxd1 {[%emt 0:00:01]} Bxc5 {[%emt 0:00:00]} 10. O-O {[%emt 0:00:13][%cal Od1c3]} Nc6 {[%emt 0:00:48]} 11. Bxc6 {[%emt 0:00:10]} bxc6 {[%emt 0:00:00]} 12. Be3 {[%emt 0:00:01]} Bb6 {[%emt 0:00:19]} 13. Bxb6 {[%emt 0:00:08]} axb6 {[%emt 0:00:00]} 14. Nc3 {[%emt 0:00:05][%cal Of1d1]} Nd5 {[%emt 0:00:09]} 15. Nxc6 {[%emt 0:01:03]} Nxc3 {[%emt 0:03:01]} 16. bxc3 {[%emt 0:00:02]} f6 {[%emt 0:00:00]} 17. Rfb1 {[%emt 0:00:36][%cal Oa2a4]} Ra6 {[%emt 0:00:20]} 18. Rb4 {[%emt 0:01:05]} e5 {[%emt 0:00:02]} 19. Ne7+ $1 {[%emt 0:00:49]} Kf7 {[%emt 0:00:06]} 20. Nd5 {[%emt 0:00:01]} Be6 {[%emt 0:01:20]} 21. Rxb6 {[%emt 0:01:15]} Ra7 {[%emt 0:00:17]} 22. Nb4 {[%emt 0:00:12]} Ra3 {[%emt 0:00:02]} 23. Rc1 {[%emt 0:00:10]} Rd8 {[%emt 0:00:06]} 24. f3 {[%emt 0:01:01]} e4 {[%emt 0:00:03]} 25. Kf2 {[%emt 0:01:50]} ({White should try} 25. Rb7+ $16 Kf8 26. fxe4) 25... exf3 $11 {[%emt 0:00:06] The position is equal.} 26. Kxf3 {[%emt 0:00:03]} h5 {[%emt 0:00:16]} 27. Rc2 {[%emt 0:00:17]} Bg4+ {[%emt 0:00:05]} 28. Ke3 {[%emt 0:00:09]} Bf5 {[%emt 0:00:06]} 29. Rc1 {[%emt 0:00:01]} Bg4 {[%emt 0:00:01]} 30. Rc2 {[%emt 0:00:17]} Bf5 {[%emt 0:00:02]} 31. Rc1 {[%emt 0:00:01]} Bg4 {[%emt 0:00:01]} 32. Rc2 {[%emt 0:00:06] Weighted Error Value: White=0.05 (flawless) /Black=0.05 (flawless) .  Mistake:       	White=1     	---        Inaccurate:     	---       	Black=2      OK:         	White=11    	Black=11     Best:        	---       	Black=1      Strong:       	White=1     	---} 1/2-1/2